fUST/lending_fUST_20250205
["ID","MTS","AMOUNT","RATE_DAILY","PERIOD"]
[351693024,1738741838234,-500.0,0.00016438,2]
[351693025,1738741838244,-601.785238,0.00016438,2]
[351693026,1738741838253,-500.0,0.00016438,2]
[351693027,1738741838264,-500.0,0.00016438,2]
[351693028,1738741838277,-500.0,0.00016438,2]
[351693029,1738741838287,-509.85819214,0.00016438,2]
[351693030,1738741838296,-500.0,0.00016438,2]
[351693031,1738741838309,-1198.92,0.00016438,2]
[351693032,1738741838319,-500.0,0.00016438,2]
[351693033,1738741838328,-500.0,0.00016438,2]
[351693034,1738741838338,-500.0,0.00016438,2]
[351693035,1738741838351,-1465.07,0.00016438,2]
[351693036,1738741838361,-500.0,0.00016438,2]
[351693037,1738741838371,-500.0,0.00016438,2]
[351693038,1738741838380,-500.0,0.00016438,2]
[351693039,1738741838389,-1604.44,0.00016438,2]
[351693040,1738741838399,-1126.82,0.00016438,2]
[351693041,1738741838408,-500.0,0.00016438,2]
[351693042,1738741838418,-1215.38,0.00016438,2]
[351693043,1738741838427,-799.84,0.00016438,2]
[351693044,1738741838437,-1236.02,0.00016438,2]
[351693045,1738741838446,-500.0,0.00016438,2]
[351693046,1738741838456,-797.69,0.00016438,2]
[351693047,1738741838466,-500.0,0.00016438,2]
[351693048,1738741838475,-500.0,0.00016438,2]
[351693049,1738741838485,-543.11,0.00016438,2]
[351693050,1738741838494,-543.11,0.00016438,2]
[351693051,1738741838504,-543.11,0.00016438,2]
[351693052,1738741838514,-543.11,0.00016438,2]
[351693053,1738741838524,-506.11433694,0.00016438,2]
[351693054,1738741838533,-543.11,0.00016438,2]
[351693055,1738741838543,-500.0,0.00016438,2]
[351693056,1738741838553,-500.0,0.00016438,2]
[351693057,1738741838563,-543.11,0.00016438,2]
[351693058,1738741838573,-543.11,0.00016438,2]
[351693059,1738741838583,-543.11,0.00016438,2]
[351693060,1738741838592,-543.11,0.00016438,2]
[351693061,1738741838602,-543.11,0.00016438,2]
[351693062,1738741838612,-543.11,0.00016438,2]
[351693063,1738741838621,-543.11,0.00016438,2]
[351693064,1738741838631,-2359.09,0.00016438,2]
[351693065,1738741838641,-543.11,0.00016438,2]
[351693066,1738741838650,-543.11,0.00016438,2]
[351693067,1738741838660,-500.0,0.00016438,2]
[351693068,1738741838670,-543.11,0.00016438,2]
[351693069,1738741838679,-543.11,0.00016438,2]
[351693070,1738741838689,-500.0,0.00016438,2]
[351693071,1738741838699,-543.11,0.00016438,2]
[351693072,1738741838709,-543.11,0.00016438,2]
[351693073,1738741838719,-543.11,0.00016438,2]
[351693074,1738741838729,-543.11,0.00016438,2]
[351693075,1738741838738,-500.0,0.00016438,2]
[351693076,1738741838748,-543.11,0.00016438,2]
[351693077,1738741838758,-543.11,0.00016438,2]
[351693078,1738741838768,-543.11,0.00016438,2]
[351693079,1738741838777,-543.23688898,0.00016438,2]
[351693080,1738741838787,-500.0,0.00016438,2]
[351693081,1738741838796,-702.92,0.00016438,2]
[351693082,1738741838808,-2961.89,0.00016438,2]
[351693083,1738741838817,-500.0,0.00016438,2]
[351693084,1738741838828,-500.0,0.00016438,2]
[351693085,1738741838837,-843.94,0.00016438,2]
[351693086,1738741838847,-500.0,0.00016438,2]
[351693087,1738741838857,-500.0,0.00016438,2]
[351693088,1738741838984,-501.67,0.00016438,2]
[351693089,1738741839008,-500.0,0.00016438,2]
[351693090,1738741839019,-500.0,0.00016438,2]
[351693091,1738741839028,-607.83,0.00016438,2]
[351693092,1738741839038,-1649.43,0.00016438,2]
[351693093,1738741839048,-905.95,0.00016438,2]
[351693094,1738741839058,-500.0,0.00016438,2]
[351693095,1738741839068,-500.0,0.00016438,2]
[351693096,1738741839078,-500.0,0.00016438,2]
[351693097,1738741839088,-151.0,0.00016438,2]
[351693098,1738741839097,-151.0,0.00016438,2]
[351693099,1738741839107,-151.0,0.00016438,2]
[351693100,1738741839116,-151.0,0.00016438,2]
[351693101,1738741839126,-151.0,0.00016438,2]
[351693102,1738741839135,-151.0,0.00016438,2]
[351693103,1738741839145,-188.0,0.00016438,2]
[351693104,1738741839155,-151.0,0.00016438,2]
[351693105,1738741839164,-500.0,0.00016438,2]
[351693106,1738741839174,-500.0,0.00016438,2]
[351693107,1738741839184,-151.0,0.00016438,2]
[351693108,1738741839194,-152.835517,0.00016438,2]
[351693109,1738741839204,-500.0,0.00016438,2]
[351693110,1738741839215,-632.23,0.00016438,2]
[351693111,1738741839224,-500.0,0.00016438,2]
[351693112,1738741839233,-500.0,0.00016438,2]
[351693113,1738741839243,-500.0,0.00016438,2]
[351693114,1738741839252,-859.85,0.00016438,2]
[351693115,1738741839270,-500.0,0.00016438,2]
[351693116,1738741839281,-500.0,0.00016438,2]
[351693117,1738741839290,-500.0,0.00016438,2]
[351693118,1738741839301,-500.0,0.00016438,2]
[351693119,1738741839312,-500.0,0.00016438,2]
[351693120,1738741839322,-819.98,0.00016438,2]
[351693121,1738741839332,-500.0,0.00016438,2]
[351693122,1738741839341,-500.0,0.00016438,2]
[351693123,1738741839352,-500.0,0.00016438,2]
[351693124,1738741839361,-500.0,0.00016438,2]
[351693125,1738741839371,-555.56240057,0.00016438,2]
[351693126,1738741839380,-500.0,0.00016438,2]
[351693127,1738741839390,-500.0,0.00016438,2]
[351693128,1738741839399,-500.0,0.00016438,2]
[351693129,1738741839408,-500.0,0.00016438,2]
[351693130,1738741839417,-500.61650934,0.00016438,2]
[351693131,1738741839427,-500.0,0.00016438,2]
[351693132,1738741839437,-500.0,0.00016438,2]
[351693133,1738741839447,-500.0,0.00016438,2]
[351693134,1738741839456,-500.0,0.00016438,2]
[351693135,1738741839465,-177.34276177,0.00016438,2]
[351693136,1738741839475,-556.52404146,0.00016438,2]
[351693137,1738741839484,-1060.55,0.00016438,2]
[351693138,1738741839493,-500.0,0.00016438,2]
[351693139,1738741839503,-500.0,0.00016438,2]
[351693140,1738741839514,-562.53173464,0.00016438,2]
[351693141,1738741839525,-505.58,0.00016438,2]
[351693142,1738741839535,-500.0,0.00016438,2]
[351693143,1738741839545,-500.0,0.00016438,2]
[351693144,1738741839554,-2040.71,0.00016438,2]
[351693145,1738741839564,-625.19,0.00016438,2]
[351693146,1738741839573,-327.86133162,0.00016438,2]
[351693148,1738741839583,-500.0,0.00016438,2]
[351693149,1738741839592,-500.0,0.00016438,2]
[351693151,1738741839602,-500.0,0.00016438,2]
[351693152,1738741839611,-500.0,0.00016438,2]
[351693153,1738741839621,-500.0,0.00016438,2]
[351693154,1738741839631,-500.47,0.00016438,2]
[351693155,1738741839640,-500.0,0.00016438,2]
[351693156,1738741839651,-500.0,0.00016438,2]
[351693157,1738741839661,-500.0,0.00016438,2]
[351693159,1738741839671,-500.0,0.00016438,2]
[351693160,1738741839681,-500.0,0.00016438,2]
[351693161,1738741839691,-1868.6,0.00016438,2]
[351693162,1738741839700,-173.07270016,0.00016438,2]
[351693163,1738741839709,-500.0,0.00016438,2]
[351693164,1738741839719,-500.0,0.00016438,2]
[351693165,1738741839729,-500.0,0.00016438,2]
[351693166,1738741839738,-500.0,0.00016438,2]
[351693167,1738741839747,-1000.0,0.00016438,2]
[351693168,1738741839757,-500.0,0.00016438,2]
[351693169,1738741839767,-500.67389703,0.00016438,2]
[351693171,1738741839776,-271.4331545,0.00016438,2]
[351693173,1738741839786,-1244.91,0.00016438,2]
[351693174,1738741839796,-925.58,0.00016438,2]
[351693175,1738741839806,-1980.71,0.00016438,2]
[351693176,1738741839815,-500.0,0.00016438,2]
[351693177,1738741839824,-500.0,0.00016438,2]
[351693178,1738741839834,-1057.48,0.00016438,2]
[351693179,1738741839844,-500.0,0.00016438,2]
[351693180,1738741839854,-938.99,0.00016438,2]
[351693181,1738741839864,-500.0,0.00016438,2]
[351693182,1738741839873,-500.0,0.00016438,2]
[351693183,1738741839883,-501.00598078,0.00016438,2]
[351693184,1738741839892,-500.0,0.00016438,2]
[351693185,1738741839902,-500.0,0.00016438,2]
[351693186,1738741839911,-526.77310253,0.00016438,2]
[351693187,1738741839921,-500.0,0.00016438,2]
[351693188,1738741839931,-500.0,0.00016438,2]
[351693189,1738741839941,-543.8,0.00016438,2]
[351693190,1738741839951,-500.0,0.00016438,2]
[351693191,1738741839961,-500.0,0.00016438,2]
[351693192,1738741839970,-500.0,0.00016438,2]
[351693193,1738741839980,-500.0,0.00016438,2]
[351693194,1738741839989,-500.0,0.00016438,2]
[351693195,1738741839999,-2041.26,0.00016438,2]
[351693196,1738741840009,-500.0,0.00016438,2]
[351693197,1738741840019,-500.25337162,0.00016438,2]
[351693198,1738741840028,-1747.31,0.00016438,2]
[351693199,1738741840038,-500.0,0.00016438,2]
[351693201,1738741840048,-3735.61,0.00016438,2]
[351693203,1738741840057,-630.42,0.00016438,2]
[351693204,1738741840066,-500.0,0.00016438,2]
[351693206,1738741840076,-300.0,0.00016438,2]
[351693208,1738741840085,-500.0,0.00016438,2]
[351693209,1738741840095,-500.0,0.00016438,2]
[351693210,1738741840104,-500.0,0.00016438,2]
[351693211,1738741840113,-500.0,0.00016438,2]
[351693212,1738741840122,-500.0,0.00016438,2]
[351693213,1738741840132,-533.64,0.00016438,2]
[351693214,1738741840142,-771.53,0.00016438,2]
[351693216,1738741840152,-771.53,0.00016438,2]
[351693217,1738741840161,-771.53,0.00016438,2]
[351693218,1738741840171,-771.53,0.00016438,2]
[351693219,1738741840181,-471.9695986,0.00016438,2]
[351693220,1738741840572,-299.5604014,0.00016438,2]
[351693221,1738741840582,-771.53,0.00016438,2]
[351693222,1738741840592,-771.53,0.00016438,2]
[351693223,1738741840742,-209.20912061,0.00016438,2]
[351693299,1738742082230,186.12,0.00010959,2]
[351693300,1738742092697,155.1,0.00010959,2]
[351693301,1738742103402,775.54,0.00010959,2]
[351693302,1738742117223,500.0,0.00014164,2]
[351693305,1738742262772,10000.0,0.00018,30]
[351693306,1738742270118,10000.0,0.00018,30]
[351693307,1738742273786,161.025288,0.00013973,2]
[351693308,1738742276463,10000.0,0.00018,30]
[351693310,1738742281591,10000.0,0.00018,30]
[351693325,1738742759114,176.474278,0.00013699,2]
[351693333,1738743014480,4981.18442763,0.00015012,2]
[351693341,1738743032080,-163.182,0.0001562,2]
[351693342,1738743032090,-300.0,0.00015812,2]
[351693343,1738743032100,-5559.49031483,0.00015813,2]
[351693344,1738743032110,-511.83658518,0.000159,2]
[351693345,1738743032120,-438.46043704,0.000159,2]
[351693346,1738743032129,-315.84204708,0.000159,2]
[351693347,1738743032139,-511.83658516,0.0001596,2]
[351693348,1738743032148,-298.69805937,0.00015989,2]
[351693349,1738743032157,-152.0,0.00015993,2]
[351693350,1738743032166,-500.0,0.00015999,2]
[351693351,1738743032175,-500.0,0.00015999,2]
[351693352,1738743032184,-500.0,0.00015999,2]
[351693353,1738743032193,-500.0,0.00015999,2]
[351693354,1738743032202,-500.0,0.00015999,2]
[351693355,1738743032212,-500.0,0.00015999,2]
[351693356,1738743032222,-500.0,0.00015999,2]
[351693357,1738743032231,-500.0,0.00015999,2]
[351693358,1738743032240,-500.0,0.00015999,2]
[351693359,1738743032249,-500.0,0.00015999,2]
[351693360,1738743032258,-500.0,0.00015999,2]
[351693361,1738743032267,-500.0,0.00015999,2]
[351693362,1738743032277,-500.0,0.00015999,2]
[351693363,1738743032286,-500.0,0.00015999,2]
[351693364,1738743032295,-500.0,0.00015999,2]
[351693365,1738743032305,-312.44256879,0.00015999,2]
[351693366,1738743032314,-500.0,0.00015999,2]
[351693367,1738743032323,-120.21852845,0.00016,2]
[351693368,1738743032335,-2879.78147155,0.00016,2]
[351693369,1738743032344,-1947.40222804,0.00016,3]
[351693370,1738743032379,-298658.8837562,0.00016,3]
[351693371,1738743032389,-2000.0,0.00016,2]
[351693372,1738743032398,-3000.0,0.0001601,2]
[351693373,1738743032407,-175.388,0.00016014,2]
[351693374,1738743032415,-3000.0,0.0001602,2]
[351693375,1738743032424,-511.83658516,0.0001602,2]
[351693376,1738743032433,-3000.0,0.0001603,2]
[351693377,1738743032443,-3000.0,0.0001604,2]
[351693378,1738743032453,-500.69992719,0.00016049,2]
[351693379,1738743032463,-3000.0,0.0001605,2]
[351693380,1738743032472,-3000.0,0.0001606,2]
[351693381,1738743032481,-3000.0,0.0001607,2]
[351693382,1738743032490,-151.164,0.00016079,2]
[351693383,1738743032499,-1200.0,0.00016079,2]
[351693384,1738743032508,-3000.0,0.0001608,2]
[351693385,1738743032517,-511.83658516,0.0001608,2]
[351693386,1738743032527,-3000.0,0.0001609,2]
[351693387,1738743032536,-3000.0,0.000161,2]
[351693388,1738743032546,-3000.0,0.0001611,2]
[351693389,1738743032556,-275.07397454,0.00016118,2]
[351693390,1738743032565,-3000.0,0.0001612,2]
[351693391,1738743032575,-3000.0,0.0001613,2]
[351693392,1738743032584,-3000.0,0.0001614,2]
[351693393,1738743032593,-511.83658516,0.0001614,2]
[351693394,1738743032603,-3000.0,0.0001615,2]
[351693395,1738743032612,-315.84204706,0.00016158,2]
[351693396,1738743032621,-3000.0,0.0001616,2]
[351693397,1738743032631,-215.91622932,0.00016163,2]
[351693398,1738743032640,-3000.0,0.0001617,2]
[351693399,1738743032653,-3000.0,0.0001618,2]
[351693400,1738743032661,-3000.0,0.0001619,2]
[351693401,1738743032670,-151.11971487,0.00016197,2]
[351693402,1738743032679,-3000.0,0.000162,2]
[351693403,1738743032689,-3000.0,0.0001621,2]
[351693404,1738743032699,-3000.0,0.0001622,2]
[351693405,1738743032708,-153.0,0.00016222,2]
[351693406,1738743032717,-3000.0,0.0001623,2]
[351693407,1738743032727,-3000.0,0.0001624,2]
[351693408,1738743032737,-3000.0,0.0001625,2]
[351693409,1738743032746,-3000.0,0.0001626,2]
[351693410,1738743032755,-7438.69753278,0.00016267,2]
[351693411,1738743032764,-3000.0,0.0001627,2]
[351693412,1738743032773,-186.3915856,0.00016273,2]
[351693413,1738743032782,-3000.0,0.0001628,2]
[351693414,1738743032792,-3000.0,0.0001629,2]
[351693415,1738743032801,-3000.0,0.000163,2]
[351693416,1738743032811,-151.0,0.000163,2]
[351693417,1738743032820,-151.0,0.000163,2]
[351693418,1738743032830,-3313.78687,0.0001631,2]
[351693419,1738743032840,-1557.41266472,0.00016338,2]
[351693420,1738743032849,-9990.78169237,0.00016338,2]
[351693583,1738743043190,-396.0,0.00015944,2]
[351693584,1738743043199,-45.0,0.00016338,2]
[351693603,1738743046198,-1155.0,0.00016338,2]
[351693604,1738743046208,-1906.3098154,0.00016338,2]
[351693607,1738743106725,165.355812,0.00013973,2]
[351693617,1738743374248,154.49192,0.0001764,30]
[351693621,1738743533044,500.0,0.00014164,2]
[351693623,1738743646043,174.310707,0.00013699,2]
[351693638,1738744085913,193.64559883,0.00014947,5]
[351693657,1738744135271,200.0,0.00015012,2]
[351693688,1738744232428,-236.88153533,0.0001552,2]
[351693689,1738744232438,-175.11055212,0.0001552,2]
[351693690,1738744232448,-300.0,0.00015599,2]
[351693691,1738744232460,-1536.76716762,0.000156,2]
[351693692,1738744232474,-406.271099,0.000156,2]
[351693693,1738744232485,-101430.88026212,0.000156,2]
[351693694,1738744232506,-98349.1072205,0.000156,2]
[351693695,1738744232515,-163.052,0.0001562,2]
[351693696,1738744232524,-236.88153529,0.00015833,2]
[351693697,1738744232534,-2060.59555365,0.000159,2]
[351693698,1738744232543,-1230.6389,0.00016031,2]
[351693699,1738744232554,-7438.69753278,0.00016089,2]
[351693700,1738744232564,-1200.0,0.0001611,2]
[351693702,1738744232573,-236.88153529,0.00016145,2]
[351693704,1738744232583,-644.52443533,0.000163,2]
[351693706,1738744232592,-2000.0,0.000163,2]
[351693708,1738744232602,-970.0,0.000163,6]
[351693710,1738744232611,-215.7177124,0.000163,2]
[351693712,1738744232620,-215.7177124,0.000163,2]
[351693714,1738744232630,-215.7177124,0.000163,2]
[351693716,1738744232639,-215.6590378,0.000163,2]
[351693718,1738744232648,-244.6608124,0.00016301,2]
[351693720,1738744232658,-175.388,0.00016338,2]
[351693722,1738744232667,-1817.08061092,0.00016338,2]
[351693724,1738744232678,-25164.29135039,0.00016338,2]
[351693726,1738744232687,-2256.76,0.000164,2]
[351693728,1738744232696,-163.4256987,0.000164,2]
[351693730,1738744232706,-154.3747797,0.000164,2]
[351693732,1738744232718,-478.4195549,0.000164,2]
[351693734,1738744232727,-354.5475049,0.000164,2]
[351693736,1738744232737,-151.0,0.000164,2]
[351693738,1738744232746,-151.0,0.000164,2]
[351693739,1738744232757,-151.0,0.000164,2]
[351693740,1738744232767,-151.0,0.000164,2]
[351693741,1738744232777,-151.0,0.000164,2]
[351693742,1738744232787,-215.7177124,0.000164,2]
[351693743,1738744232796,-306.0,0.000164,2]
[351693744,1738744232807,-354.3389743,0.000164,2]
[351693745,1738744232817,-313.2340431,0.000164,2]
[351693746,1738744232827,-215.7177124,0.000164,2]
[351693747,1738744232838,-151.0,0.000164,2]
[351693748,1738744232848,-151.0,0.000164,2]
[351693749,1738744232857,-208.607691,0.00016437,2]
[351693750,1738744232867,-500.0,0.00016437,2]
[351693751,1738744232877,-373.83392797,0.00016437,2]
[351693752,1738744232886,-500.0,0.00016437,2]
[351693753,1738744232897,-423.60472987,0.00016437,2]
[351693754,1738744232906,-159.78229,0.00016438,2]
[351693755,1738744232915,-159.78229,0.00016438,2]
[351693756,1738744232926,-159.78229,0.00016438,2]
[351693757,1738744232936,-159.78229,0.00016438,2]
[351693758,1738744232946,-159.78229,0.00016438,2]
[351693759,1738744232956,-159.78229,0.00016438,2]
[351693760,1738744232967,-159.78229,0.00016438,2]
[351693761,1738744232976,-159.78229,0.00016438,2]
[351693762,1738744232986,-159.78229,0.00016438,2]
[351693763,1738744233000,-159.78229,0.00016438,2]
[351693764,1738744233010,-159.78229,0.00016438,2]
[351693765,1738744233019,-159.78229,0.00016438,2]
[351693766,1738744233029,-151.0,0.00016438,2]
[351693767,1738744233041,-151.0,0.00016438,2]
[351693768,1738744233050,-151.0,0.00016438,2]
[351693769,1738744233060,-151.0,0.00016438,2]
[351693770,1738744233070,-151.0,0.00016438,2]
[351693771,1738744233081,-151.0,0.00016438,2]
[351693772,1738744233092,-151.0,0.00016438,2]
[351693773,1738744233102,-151.0,0.00016438,2]
[351693774,1738744233111,-151.0,0.00016438,2]
[351693775,1738744233121,-151.0,0.00016438,2]
[351693776,1738744233131,-151.0,0.00016438,2]
[351693777,1738744233140,-151.0,0.00016438,2]
[351693778,1738744233150,-151.0,0.00016438,2]
[351693779,1738744233161,-151.0,0.00016438,2]
[351693780,1738744233172,-151.0,0.00016438,2]
[351693781,1738744233182,-151.0,0.00016438,2]
[351693782,1738744233192,-151.0,0.00016438,2]
[351693783,1738744233201,-151.0,0.00016438,2]
[351693784,1738744233211,-151.0,0.00016438,2]
[351693785,1738744233380,-151.0,0.00016438,2]
[351693786,1738744233395,-151.0,0.00016438,2]
[351693787,1738744233405,-151.0,0.00016438,2]
[351693788,1738744233415,-253.647096,0.00016438,2]
[351693789,1738744233426,-151.0,0.00016438,2]
[351693790,1738744233436,-151.703478,0.00016438,2]
[351693791,1738744233445,-151.0,0.00016438,2]
[351693792,1738744233455,-151.0,0.00016438,2]
[351693793,1738744233466,-151.0,0.00016438,2]
[351693794,1738744233476,-151.0,0.00016438,2]
[351693795,1738744233486,-151.0,0.00016438,2]
[351693796,1738744233495,-151.0,0.00016438,2]
[351693797,1738744233505,-151.0,0.00016438,2]
[351693798,1738744233515,-151.0,0.00016438,2]
[351693799,1738744233524,-151.0,0.00016438,2]
[351693800,1738744233534,-151.0,0.00016438,2]
[351693801,1738744233544,-224.370317,0.00016438,2]
[351693802,1738744233553,-151.0,0.00016438,2]
[351693803,1738744233563,-151.0,0.00016438,2]
[351693804,1738744233573,-151.0,0.00016438,2]
[351693805,1738744233582,-151.0,0.00016438,2]
[351693806,1738744233592,-151.0,0.00016438,2]
[351693807,1738744233602,-204.599236,0.00016438,2]
[351693808,1738744233612,-151.0,0.00016438,2]
[351693809,1738744233621,-151.0,0.00016438,2]
[351693810,1738744233630,-151.0,0.00016438,2]
[351693811,1738744233640,-151.0,0.00016438,2]
[351693812,1738744233650,-151.0,0.00016438,2]
[351693813,1738744233660,-151.0,0.00016438,2]
[351693814,1738744233670,-151.0,0.00016438,2]
[351693815,1738744233680,-151.0,0.00016438,2]
[351693816,1738744233691,-151.0,0.00016438,2]
[351693817,1738744233701,-217.534443,0.00016438,2]
[351693818,1738744233710,-151.0,0.00016438,2]
[351693819,1738744233721,-151.0,0.00016438,2]
[351693820,1738744233731,-151.0,0.00016438,2]
[351693821,1738744233741,-151.0,0.00016438,2]
[351693822,1738744233752,-223.318338,0.00016438,2]
[351693823,1738744233762,-151.0,0.00016438,2]
[351693824,1738744233773,-151.0,0.00016438,2]
[351693825,1738744233783,-151.0,0.00016438,2]
[351693826,1738744233793,-275.536196,0.00016438,2]
[351693827,1738744233802,-500.0,0.00016438,2]
[351693828,1738744233813,-500.0,0.00016438,2]
[351693829,1738744233822,-500.0,0.00016438,2]
[351693830,1738744233833,-500.0,0.00016438,2]
[351693831,1738744233842,-500.0,0.00016438,2]
[351693832,1738744233852,-500.0,0.00016438,2]
[351693833,1738744233862,-500.0,0.00016438,2]
[351693834,1738744233872,-558.34902161,0.00016438,2]
[351693835,1738744233882,-500.0,0.00016438,2]
[351693836,1738744233892,-500.0,0.00016438,2]
[351693837,1738744233902,-500.0,0.00016438,2]
[351693838,1738744233911,-621.93622851,0.00016438,2]
[351693839,1738744233921,-626.2347973,0.00016438,2]
[351693840,1738744233931,-590.94673044,0.00016438,2]
[351693841,1738744233940,-566.39591227,0.00016438,2]
[351693842,1738744233951,-541.63379045,0.00016438,2]
[351693843,1738744233961,-500.0,0.00016438,2]
[351693844,1738744233972,-503.18762165,0.00016438,2]
[351693845,1738744233982,-501.52015098,0.00016438,2]
[351693846,1738744233992,-92.64589204,0.00016438,2]
[351693847,1738744234015,-58.35410796,0.00016438,2]
[351693848,1738744234025,-151.0,0.00016438,2]
[351693849,1738744234035,-151.0,0.00016438,2]
[351693850,1738744234045,-96.29589204,0.00016438,2]
[351693857,1738744238116,-410.08924242,0.00016438,2]
[351693858,1738744238126,-151.0,0.00016438,2]
[351693859,1738744238136,-151.0,0.00016438,2]
[351693860,1738744238145,-151.0,0.00016438,2]
[351693861,1738744238154,-198.414053,0.00016438,2]
[351693862,1738744238164,-500.0,0.00016438,2]
[351693863,1738744238174,-500.0,0.00016438,2]
[351693864,1738744238183,-325.79633975,0.00016438,2]
[351693865,1738744238195,-175.25206558,0.00016438,2]
[351693866,1738744238204,-500.0,0.00016438,2]
[351693867,1738744238214,-500.0,0.00016438,2]
[351693868,1738744238224,-500.0,0.00016438,2]
[351693869,1738744238235,-500.0,0.00016438,2]
[351693870,1738744238244,-1324.53974642,0.00016438,2]
[351693871,1738744238256,-41.60608558,0.00016438,2]
[351693872,1738744238265,-1366.145832,0.00016438,2]
[351693873,1738744238274,-1366.145832,0.00016438,2]
[351693874,1738744238283,-1366.145832,0.00016438,2]
[351693875,1738744238292,-1366.145832,0.00016438,2]
[351693876,1738744238302,-1366.145832,0.00016438,2]
[351693877,1738744238311,-1366.145832,0.00016438,2]
[351693878,1738744238320,-1366.145832,0.00016438,2]
[351693879,1738744238330,-1366.145832,0.00016438,2]
[351693880,1738744238339,-466.47746863,0.00016438,2]
[351693881,1738744238349,-1366.145832,0.00016438,2]
[351693882,1738744238361,-365.351134,0.00016438,2]
[351693883,1738744238371,-365.351134,0.00016438,2]
[351693884,1738744238380,-365.351134,0.00016438,2]
[351693885,1738744238544,-365.351134,0.00016438,2]
[351693886,1738744238553,-365.351134,0.00016438,2]
[351693887,1738744238563,-365.351134,0.00016438,2]
[351693888,1738744238572,-365.351134,0.00016438,2]
[351693889,1738744238582,-362.16177639,0.00016438,2]
[351693890,1738744238599,-3.18935761,0.00016438,2]
[351693891,1738744238609,-365.351134,0.00016438,2]
[351693892,1738744238618,-365.351134,0.00016438,2]
[351693893,1738744238628,-614.92,0.00016438,2]
[351693894,1738744238638,-500.0,0.00016438,2]
[351693895,1738744238648,-500.0,0.00016438,2]
[351693896,1738744238658,-1383.38,0.00016438,2]
[351693897,1738744238667,-974.35,0.00016438,2]
[351693898,1738744238677,-500.0,0.00016438,2]
[351693899,1738744238686,-500.0,0.00016438,2]
[351693900,1738744238696,-503.96,0.00016438,2]
[351693901,1738744238706,-626.8495292,0.00016438,2]
[351693902,1738744238715,-500.0,0.00016438,2]
[351693903,1738744238725,-500.0,0.00016438,2]
[351693904,1738744238735,-500.0,0.00016438,2]
[351693905,1738744238744,-500.0,0.00016438,2]
[351693906,1738744238754,-500.0,0.00016438,2]
[351693907,1738744238764,-500.0,0.00016438,2]
[351693908,1738744238774,-500.0,0.00016438,2]
[351693909,1738744238784,-500.0,0.00016438,2]
[351693910,1738744238793,-500.0,0.00016438,2]
[351693911,1738744238803,-500.0,0.00016438,2]
[351693912,1738744238812,-500.0,0.00016438,2]
[351693913,1738744238821,-500.0,0.00016438,2]
[351693914,1738744238831,-500.0,0.00016438,2]
[351693915,1738744238841,-504.7154657,0.00016438,2]
[351693916,1738744238851,-500.0,0.00016438,2]
[351693917,1738744238860,-500.0,0.00016438,2]
[351693918,1738744238870,-500.0,0.00016438,2]
[351693919,1738744238879,-154.9866136,0.00016438,2]
[351693933,1738744243254,-342.461,0.00016438,2]
[351693940,1738744246349,-396.0,0.00016121,2]